bitfinex-derivatives/quotes_BNBF0:USTF0_20250524
["timestamp","ask_amount","ask_price","bid_price","bid_amount"]
[1748076830531,0.29748624,672.3,671.51,1.11699522]
[1748076831531,0.29748624,672.3,671.52,1.11699522]
[1748076832532,0.29748624,672.3,671.53,1.11699522]
[1748076833733,0.29748624,672.3,671.54,1.11699522]
[1748076835133,0.29748624,672.3,671.55,1.11699522]
[1748076837139,0.29748624,672.3,671.56,1.11699522]
[1748076838441,0.29748624,672.3,671.57,1.11699522]
[1748076839439,0.29748624,672.3,671.58,1.11699522]
[1748076840144,0.29748624,672.3,671.35,1.1111982]
[1748076842145,0.29748624,672.3,671.36,1.13197582]
[1748076843147,0.29748624,672.3,671.37,1.13197582]
[1748076844342,0.29748624,672.3,671.38,1.13197582]
[1748076845546,0.29748624,672.3,671.39,1.13197582]
[1748076847149,0.29748624,672.3,671.13,1.1111982]
[1748076848148,0.29748624,672.3,671.14,1.13373582]
[1748076849951,0.29748624,672.3,671.15,1.13373582]
[1748076850750,0.29748624,672.3,671.16,1.13373582]
[1748076852351,0.29748624,672.3,671.17,1.13373582]
[1748076853354,0.29748624,672.3,671.18,1.13373582]
[1748076854646,0.29748624,672.3,671.19,1.13373582]
[1748076855751,0.29748624,672.3,671.2,1.13373582]
[1748076857254,0.29748624,672.3,671.21,1.13373582]
[1748076858354,0.29748624,672.3,671.22,1.13373582]
[1748076860157,0.29748624,672.3,671.23,1.13373582]
[1748076861958,0.29748624,672.3,671.24,1.13373582]
[1748076863461,0.29748624,672.3,671.25,1.13373582]
[1748076864662,0.29748624,672.3,671.26,1.13373582]
[1748076866162,0.29748624,672.3,671.04,1.13373582]
[1748076867163,0.29748624,672.3,671.05,1.13373582]
[1748076868957,0.29748624,672.3,671.06,1.13373582]
[1748076870063,0.29748624,672.3,671.07,1.13373582]
[1748076871459,0.29748624,672.3,671.08,1.13373582]
[1748076872565,0.29748624,672.3,671.09,1.13373582]
[1748076873766,0.29748624,672.3,671.1,1.13373582]
[1748076874568,0.29748624,672.3,671.11,1.13373582]
[1748076876471,0.29748624,672.3,671.12,1.13373582]
[1748076878072,0.29748624,672.3,671.13,1.13373582]
[1748076879873,0.29748624,672.3,671.14,1.13373582]
[1748076880976,0.29748624,672.3,671.15,1.13373582]
[1748076882578,0.29748624,672.3,671.16,1.13373582]
[1748076883577,0.29748624,672.3,671.17,1.13373582]
[1748076885279,0.29748624,672.3,671.18,1.13373582]
[1748076886883,0.29748624,672.3,671.19,1.13373582]
[1748076887884,0.29748624,672.3,671.2,1.13373582]
[1748076889282,0.29748624,672.3,671.21,1.13373582]
[1748076890485,0.29748624,672.3,671.22,1.13373582]
[1748076891485,0.29748624,672.3,671.23,1.13373582]
[1748076892889,0.29748624,672.3,671.24,1.13373582]
[1748076894090,0.29748624,672.3,671.25,1.13373582]
[1748076895393,0.29748624,672.3,671.26,1.13373582]
[1748076896392,0.29748624,672.3,671.27,1.13373582]
[1748076897898,0.29748624,672.3,671.28,1.13373582]
[1748076899497,0.29748624,672.3,671.29,1.13373582]
[1748076901298,0.29748624,672.3,671.3,1.13373582]
[1748076902697,0.29748624,672.3,671.31,1.13373582]
[1748076903994,0.29748624,672.3,671.32,1.13373582]
[1748076904997,0.29748624,672.3,671.33,1.13373582]
[1748076906799,0.29748624,672.3,671.34,1.13373582]
[1748076908001,0.29748624,672.3,671.35,1.13373582]
[1748076909100,0.29748624,672.3,671.36,1.13373582]
[1748076910500,0.29748624,672.3,671.37,1.13373582]
[1748076912099,0.29748624,672.3,671.38,1.13373582]
[1748076913602,0.29748624,672.3,671.39,1.13373582]
[1748076915200,0.29748624,672.3,671.4,1.13373582]
[1748076916597,0.29748624,672.3,671.41,1.13373582]
[1748076917803,0.29748624,672.3,671.42,1.13373582]
[1748076919102,0.29748624,672.3,671.43,1.13373582]
[1748076920999,0.29748624,672.3,671.44,1.13373582]
[1748076922006,0.29748624,672.3,671.18,1.1111982]
[1748076923904,0.29748624,672.3,671.19,1.14080023]
[1748076925007,0.29748624,672.3,671.2,1.14080023]
[1748076926906,0.29748624,672.3,671.21,1.14080023]
[1748076927505,0.29748624,672.3,671.22,1.14080023]
[1748076929405,0.29748624,672.3,671.23,1.14080023]
[1748076930110,0.29748624,672.3,671.24,1.14080023]
[1748076931211,0.29748624,672.3,671.25,1.14080023]
[1748076932510,0.29748624,672.3,671.26,1.14080023]
[1748076933911,0.29748624,672.3,671.27,1.14080023]
[1748076935314,0.29748624,672.3,671.28,1.14080023]
[1748076936915,0.29748624,672.3,671.29,1.14080023]
[1748076938314,0.29748624,672.3,671.3,1.14080023]
[1748076940017,0.29748624,672.3,671.31,1.14080023]
[1748076941420,0.29748624,672.3,671.32,1.14080023]
[1748076942520,0.29748624,672.3,671.33,1.14080023]
[1748076943320,0.29748624,672.3,671.34,1.14080023]
[1748076944420,0.29748624,672.3,671.35,1.14080023]
[1748076945627,0.29748624,672.3,671.36,1.14080023]
[1748076946919,0.29748624,672.3,671.37,1.14080023]
[1748076948223,0.29748624,672.3,671.38,1.14080023]
[1748076950023,0.29748624,672.3,671.39,1.14080023]
[1748076951225,0.29748624,672.3,671.4,1.14080023]
[1748076952328,0.29748624,672.3,671.41,1.14080023]
[1748076953428,0.29748624,672.3,671.42,1.14080023]
[1748076955030,0.29748624,672.3,671.43,1.14080023]
[1748076956834,0.29748624,672.3,671.44,1.14080023]
[1748076958233,0.29748624,672.3,671.12,1.1111982]
[1748076959530,0.29748624,672.3,671.13,0.90282104]
[1748076961135,0.29748624,672.3,671.14,0.90282104]
[1748076962236,0.29748624,672.3,671.15,0.90282104]
[1748076963530,0.29748624,672.3,671.16,0.90282104]
[1748076964834,0.29748624,672.3,671.17,0.90282104]
[1748076966136,0.29748624,672.3,671.18,0.90282104]
[1748076967438,0.29748624,672.3,671.19,0.90282104]
[1748076968738,0.29748624,672.3,671.2,0.90282104]
[1748076970040,0.29748624,672.3,671.21,0.90282104]
[1748076971538,0.29748624,672.3,671.22,0.90282104]
[1748076972738,0.29748624,672.3,671.23,0.90282104]
[1748076974139,0.29748624,672.3,671.27,1.1111982]
[1748076975039,0.29748624,672.3,671.28,0.90282104]
[1748076976342,0.29748624,672.3,671.29,0.90282104]
[1748076977543,0.29748624,672.3,671.3,0.90282104]
[1748076978641,0.29748624,672.3,671.26,1.1111982]
[1748076978642,0.29748624,672.3,671.31,0.90282104]
[1748076979943,0.29748624,672.3,671.32,0.90282104]
[1748076980343,0.25902011,672.06,671.32,0.90282104]
[1748076980542,0.2975969,672.05,671.32,0.90282104]
[1748076982141,0.2975969,672.05,671.33,0.90282104]
[1748076983247,0.2975969,672.05,671.34,0.90282104]
[1748076984748,0.2975969,672.05,671.29,1.1111982]
[1748076984749,0.2975969,672.05,671.35,0.90282104]
[1748076985747,0.2975969,672.05,671.36,0.90282104]
[1748076987047,0.2975969,672.05,671.37,0.90282104]
[1748076988750,0.2975969,672.05,671.38,0.90282104]
[1748076989950,0.2975969,672.05,671.39,0.90282104]
[1748076991646,0.2975969,672.05,671.4,0.90282104]
[1748076993451,0.2975969,672.05,671.41,0.90282104]
[1748076994854,0.2975969,672.05,671.42,0.90282104]
[1748076996558,0.2975969,672.05,671.43,0.90282104]
[1748076997956,0.2975969,672.05,671.44,0.90282104]
[1748076999159,0.2975969,672.05,671.45,0.90282104]
[1748077000659,0.2975969,672.05,671.46,0.90282104]
[1748077002462,0.2975969,672.05,671.47,0.90282104]
[1748077003462,0.2975969,672.05,671.48,0.90282104]
[1748077004863,0.2975969,672.05,671.27,1.1111982]
[1748077004864,0.2975969,672.05,671.49,0.90282104]
[1748077006263,0.2975969,672.05,671.5,0.90282104]
[1748077007963,0.2975969,672.05,671.51,0.90282104]
[1748077009366,0.2975969,672.05,671.52,0.90282104]
[1748077010765,0.2975969,672.05,671.53,0.90282104]
[1748077012271,0.2975969,672.05,671.54,0.90282104]
[1748077013772,0.2975969,672.05,671.55,0.90282104]
[1748077014969,0.2975969,672.05,671.56,0.90282104]
[1748077016468,0.2975969,672.05,671.57,0.90282104]
[1748077017473,0.2975969,672.05,671.58,0.90282104]
[1748077018677,0.2975969,672.05,671.36,1.1111982]
[1748077019776,0.2975969,672.05,671.37,0.88166616]
[1748077021177,0.2975969,672.05,671.41,1.1111982]
[1748077022373,0.2975969,672.05,671.42,0.88166616]
[1748077023478,0.2975969,672.05,671.46,1.1111982]
[1748077024378,0.2975969,672.05,671.47,0.88166616]
[1748077025977,0.2975969,672.05,671.48,0.88166616]
[1748077027181,0.2975969,672.05,671.49,0.88166616]
[1748077028881,0.2975969,672.05,671.5,0.88166616]
[1748077030183,0.2975969,672.05,671.51,0.88166616]
[1748077031484,0.2975969,672.05,671.52,0.88166616]
[1748077032483,0.2975969,672.05,671.53,0.88166616]
[1748077033984,0.2975969,672.05,671.54,0.88166616]
[1748077035282,0.2975969,672.05,671.55,0.88166616]
[1748077036686,0.2975969,672.05,671.26,1.1111982]
[1748077037581,0.2975969,672.05,671.27,0.88281136]
[1748077038386,0.2975969,672.05,671.28,0.88281136]
[1748077039786,0.2975969,672.05,671.29,0.88281136]
[1748077041188,0.2975969,672.05,671.3,0.88281136]
[1748077042385,0.2975969,672.05,671.31,0.88281136]
[1748077043989,0.2975969,672.05,671.32,0.88281136]
[1748077045688,0.2975969,672.05,671.33,0.88281136]
[1748077046997,0.2975969,672.05,671.34,0.88281136]
[1748077048398,0.2975969,672.05,671.35,0.88281136]
[1748077049996,0.2975969,672.05,671.36,0.88281136]
[1748077050799,0.2975969,672.05,671.37,0.88281136]
[1748077052093,0.2975969,672.05,671.38,0.88281136]
[1748077053093,0.2975969,672.05,671.39,0.88281136]
[1748077054599,0.2975969,672.05,671.4,0.88281136]
[1748077055699,0.2975969,672.05,671.41,0.88281136]
[1748077058004,0.2975969,672.05,671.42,0.88281136]
[1748077059102,0.2975969,672.05,671.43,0.88281136]
[1748077060899,0.2975969,672.05,671.44,0.88281136]
[1748077062305,0.2975969,672.05,671.45,0.88281136]
[1748077063404,0.2975969,672.05,671.46,0.88281136]
[1748077065008,0.2975969,672.05,671.47,0.88281136]
[1748077066709,0.2975969,672.05,671.48,0.88281136]
[1748077068205,0.2975969,672.05,671.49,0.88281136]
[1748077069709,0.2975969,672.05,671.5,0.88281136]
[1748077070713,0.2975969,672.05,671.51,0.88281136]
[1748077072213,0.2975969,672.05,671.52,0.88281136]
[1748077073613,0.2975969,672.05,671.53,0.88281136]
[1748077075017,0.2975969,672.05,671.54,0.88281136]
[1748077076417,0.2975969,672.05,671.55,0.88281136]
[1748077078319,0.2975969,672.05,671.56,0.88281136]
[1748077079313,0.2975969,672.05,671.57,0.88281136]
[1748077081021,0.2975969,672.05,671.58,0.88281136]
[1748077082319,0.2975969,672.05,671.59,0.88281136]
[1748077083920,0.2975969,672.05,671.6,0.88281136]
[1748077084923,0.2975969,672.05,671.61,0.88281136]
[1748077086030,0.2975969,672.05,671.54,1.1111982]
[1748077086031,0.2975969,672.05,671.62,0.88281136]
[1748077087335,0.2975969,672.05,671.63,0.88281136]
[1748077088632,0.2975969,672.05,671.48,1.1111982]
[1748077088633,0.2975969,672.05,671.64,0.88281136]
[1748077089438,0.2975969,672.05,671.65,0.88281136]
[1748077091234,0.2975969,672.05,671.66,0.88281136]
[1748077092736,0.2975969,672.05,671.67,0.88281136]
[1748077094338,0.2975969,672.05,671.68,0.88281136]
[1748077095640,0.2975969,672.05,671.69,0.88281136]
[1748077096639,0.2975969,672.05,671.7,0.88281136]
[1748077097940,0.2975969,672.05,671.71,0.88281136]
[1748077099239,0.2975969,672.05,671.72,0.88281136]
[1748077100942,0.2975969,672.05,671.48,1.1111982]
[1748077102542,0.2975969,672.05,671.49,0.84879386]
[1748077103938,0.2975969,672.05,671.5,0.84879386]
[1748077105345,0.2975969,672.05,671.51,0.84879386]
[1748077106643,0.2975969,672.05,671.52,0.84879386]
[1748077107742,0.2975969,672.05,671.53,0.84879386]
[1748077108948,0.2975969,672.05,671.54,0.84879386]
[1748077110447,0.2975969,672.05,671.55,0.84879386]
[1748077111550,0.2975969,672.05,671.56,0.84879386]
[1748077112859,0.2975969,672.05,671.57,0.84879386]
[1748077114049,0.2975969,672.05,671.58,0.84879386]
[1748077115049,0.2975969,672.05,671.59,0.84879386]
[1748077116153,0.2975969,672.05,671.6,0.84879386]
[1748077117054,0.2975969,672.05,671.61,0.84879386]
[1748077117954,0.2975969,672.05,671.62,0.84879386]
[1748077119655,0.2975969,672.05,671.63,0.84879386]
[1748077120755,0.2975969,672.05,671.64,0.84879386]
[1748077122060,0.2975969,672.05,671.65,0.84879386]
[1748077123160,0.2975969,672.05,671.66,0.84879386]
[1748077124561,0.2975969,672.05,671.67,0.84879386]
[1748077125760,0.2975969,672.05,671.68,0.84879386]
[1748077127057,0.2975969,672.05,671.45,1.1111982]
[1748077128165,0.2975969,672.05,671.46,0.85116257]
[1748077129561,0.2975969,672.05,671.49,1.1111982]
[1748077130862,0.2975969,672.05,671.5,0.85116257]
[1748077132061,0.2975969,672.05,671.51,1.96236077]
[1748077133967,0.2975969,672.05,671.52,0.85116257]
[1748077135367,0.2975969,672.05,671.53,1.1111982]
[1748077135567,0.2975969,672.05,671.53,1.96236077]
[1748077136666,0.2975969,672.05,671.54,0.85116257]
[1748077137768,0.2975969,672.05,671.56,1.1111982]
[1748077138766,0.2975969,672.05,671.57,0.85116257]
[1748077140169,0.2975969,672.05,671.58,0.85116257]
[1748077141267,0.2975969,672.05,671.59,0.85116257]
[1748077142870,0.2975969,672.05,671.54,1.1111982]
[1748077142871,0.2975969,672.05,671.6,0.85116257]
[1748077144569,0.2975969,672.05,671.61,0.85116257]
[1748077145668,0.2975969,672.05,671.62,0.85116257]
[1748077146869,0.2975969,672.05,671.63,0.85116257]
[1748077148272,0.2975969,672.05,671.64,0.85116257]
[1748077149572,0.2975969,672.05,671.65,0.85116257]
[1748077150973,0.2975969,672.05,671.66,0.85116257]
[1748077151968,0.2975969,672.05,671.46,1.1111982]
[1748077151969,0.2975969,672.05,671.67,0.85116257]
[1748077154171,0.2975969,672.05,671.68,0.85116257]
[1748077155171,0.2975969,672.05,671.69,0.85116257]
[1748077156676,0.2975969,672.05,671.7,0.85116257]
[1748077157777,0.2975969,672.05,671.44,1.1111982]
[1748077158778,0.2975969,672.05,671.45,0.80226605]
[1748077160279,0.2975969,672.05,671.46,0.80226605]
[1748077161981,0.2975969,672.05,671.47,0.80226605]
[1748077163083,0.2975969,672.05,671.48,0.80226605]
[1748077163878,0.2975969,672.05,671.49,0.80226605]
[1748077164883,0.2975969,672.05,671.5,0.80226605]
[1748077166786,0.2975969,672.05,671.51,0.80226605]
[1748077167986,0.2975969,672.05,671.52,0.80226605]
[1748077169590,0.2975969,672.05,671.53,0.80226605]
[1748077170691,0.2975969,672.05,671.54,0.80226605]
[1748077172391,0.2975969,672.05,671.55,0.80226605]
[1748077173390,0.2975969,672.05,671.56,0.80226605]
[1748077175091,0.2975969,672.05,671.57,0.80226605]
[1748077176391,0.2975969,672.05,671.58,0.80226605]
[1748077177394,0.2975969,672.05,671.59,0.80226605]
[1748077178995,0.2975969,672.05,671.6,0.80226605]
[1748077180693,0.2975969,672.05,671.61,0.80226605]
[1748077181797,0.2975969,672.05,671.62,0.80226605]
[1748077183300,0.2975969,672.05,671.63,0.80226605]
[1748077184494,0.2975969,672.05,671.64,0.80226605]
[1748077185702,0.2975969,672.05,671.65,0.80226605]
[1748077186903,0.2975969,672.05,671.66,0.80226605]
[1748077188309,0.2975969,672.05,671.67,0.80226605]
[1748077189407,0.2975969,672.05,671.68,0.80226605]
[1748077190507,0.2975969,672.05,671.4,1.1111982]
[1748077191809,0.2975969,672.05,671.41,0.80316005]
[1748077193813,0.2975969,672.05,671.42,0.80316005]
[1748077194912,0.2975969,672.05,671.43,0.80316005]
[1748077195817,0.2975969,672.05,671.44,0.80316005]
[1748077197112,0.2975969,672.05,671.45,0.80316005]
[1748077198421,0.2975969,672.05,671.46,0.80316005]
[1748077199821,0.2975969,672.05,671.47,0.80316005]
[1748077201423,0.2975969,672.05,671.48,0.80316005]
[1748077202423,0.2975969,672.05,671.49,0.80316005]
[1748077203722,0.2975969,672.05,671.5,0.80316005]
[1748077205122,0.2975969,672.05,671.51,0.80316005]
[1748077207129,0.2975969,672.05,671.52,0.80316005]
[1748077208131,0.2975969,672.05,671.53,0.80316005]
[1748077209531,0.2975969,672.05,671.54,0.80316005]
[1748077210632,0.2975969,672.05,671.55,0.80316005]
[1748077211933,0.2975969,672.05,671.56,0.80316005]
[1748077213035,0.2975969,672.05,671.57,0.80316005]
[1748077214038,0.2975969,672.05,671.58,0.80316005]
[1748077215332,0.2975969,672.05,671.59,0.80316005]
[1748077216639,0.2975969,672.05,671.6,0.80316005]
[1748077217738,0.2975969,672.05,671.61,0.80316005]
[1748077219536,0.2975969,672.05,671.62,0.80316005]
[1748077220939,0.2975969,672.05,671.63,0.80316005]
[1748077222242,0.2975969,672.05,671.64,0.80316005]
[1748077223541,0.2975969,672.05,671.34,1.1111982]
[1748077224943,0.2975969,672.05,671.37,1.1111982]
[1748077226444,0.2975969,672.05,671.38,0.80345411]
[1748077227838,0.2975969,672.05,671.39,0.80345411]
[1748077229043,0.2975969,672.05,671.4,0.80345411]
[1748077230544,0.2975969,672.05,671.66,1.1111982]
[1748077231244,0.2975969,672.05,671.67,0.80345411]
[1748077232541,0.2975969,672.05,671.76,1.1111982]
[1748077233847,0.2975969,672.05,671.77,0.80345411]
[1748077235048,0.25885249,672.63,671.77,0.80345411]
[1748077235248,0.29734913,672.61,671.78,0.80345411]
[1748077236449,0.29734913,672.61,671.79,0.80345411]
[1748077237950,0.29734913,672.61,671.82,1.1111982]
[1748077239553,0.29734913,672.61,671.83,0.80345411]
[1748077240849,0.29734913,672.61,671.85,1.1111982]
[1748077242056,0.29734913,672.61,671.86,0.80345411]
[1748077243855,0.29734913,672.61,671.93,1.1111982]
[1748077245352,0.29734913,672.61,671.94,0.80345411]
[1748077246657,0.29734913,672.61,672.15,1.1111982]
[1748077248158,0.29734913,672.61,672.16,0.80345411]
[1748077249256,0.29734913,672.61,672.17,1.1111982]
[1748077249461,0.29734913,672.61,672.17,1.91465231]
[1748077250559,0.29734913,672.61,672.18,0.80345411]
[1748077251960,0.29734913,672.61,672.19,0.80345411]
[1748077253360,0.29734913,672.61,672.2,0.80345411]
[1748077254262,0.29734913,672.61,672.21,0.80345411]
[1748077255661,0.29734913,672.61,672.22,0.80345411]
[1748077256761,0.29734913,672.61,672.23,0.80345411]
[1748077258166,0.29734913,672.61,672.24,0.80345411]
[1748077259568,0.29734913,672.61,672.25,1.91465231]
[1748077260272,0.29734913,672.61,672.26,0.80345411]
[1748077261672,0.29734913,672.61,672.27,0.80345411]
[1748077262572,0.29734913,672.61,672.28,0.80345411]
[1748077264082,0.29734913,672.61,672.29,0.80345411]
[1748077265384,0.29734913,672.61,672.3,0.80345411]
[1748077266986,0.29734913,672.61,672.31,0.80345411]
[1748077267981,0.29734913,672.61,672.32,0.80345411]
[1748077269980,0.29734913,672.61,672.33,0.80345411]
[1748077270988,0.29734913,672.61,672.34,0.80345411]
[1748077272287,0.29734913,672.61,672.35,0.80345411]
[1748077273690,0.29734913,672.61,672.36,0.80345411]
[1748077275191,0.29734913,672.61,672.37,0.80345411]
[1748077276287,0.29734913,672.61,672.38,0.80345411]
[1748077277696,0.29734913,672.61,672.16,1.1111982]
[1748077278394,0.29734913,672.61,672.17,0.79382913]
[1748077279396,0.29734913,672.61,672.18,0.79382913]
[1748077280792,0.29734913,672.61,672.19,0.79382913]
[1748077282301,0.29734913,672.61,672.2,0.79382913]
[1748077283102,0.29734913,672.61,672.21,0.79382913]
[1748077284105,0.29734913,672.61,671.86,1.1111982]
[1748077285204,0.29734913,672.61,671.87,0.79312437]
[1748077286504,0.29734913,672.61,671.88,0.79312437]
[1748077287606,0.29734913,672.61,671.89,0.79312437]
[1748077289001,0.29734913,672.61,671.9,0.79312437]
[1748077290307,0.29734913,672.61,671.91,0.79312437]
[1748077291507,0.29734913,672.61,671.92,0.79312437]
[1748077292606,0.29734913,672.61,671.93,0.79312437]
[1748077293612,0.29734913,672.61,671.94,0.79312437]
[1748077294512,0.29734913,672.61,671.95,0.79312437]
[1748077296412,0.29734913,672.61,671.96,0.79312437]
[1748077297611,0.29734913,672.61,671.97,0.79312437]
[1748077299015,0.29734913,672.61,671.98,0.79312437]
[1748077300416,0.29734913,672.61,671.99,0.79312437]
[1748077301618,0.29734913,672.61,672.0,0.79312437]
[1748077303221,0.29734913,672.61,672.01,0.79312437]
[1748077304423,0.29734913,672.61,672.02,0.79312437]
[1748077305223,0.29734913,672.61,672.03,0.79312437]
[1748077307026,0.29734913,672.61,672.04,0.79312437]
[1748077307827,0.29734913,672.61,672.05,0.79312437]
[1748077308828,0.29734913,672.61,672.06,0.79312437]
[1748077310632,0.29734913,672.61,672.07,0.79312437]
[1748077311727,0.29734913,672.61,672.08,0.79312437]
[1748077313035,0.29734913,672.61,672.09,0.79312437]
[1748077314737,0.29734913,672.61,672.1,0.79312437]
[1748077316039,0.29734913,672.61,671.81,1.1111982]
[1748077317239,0.29734913,672.61,671.82,1.9062971]
[1748077318737,0.29734913,672.61,671.83,0.7950989]
[1748077320041,0.29734913,672.61,671.84,1.9062971]
[1748077321742,0.29734913,672.61,671.85,0.7950989]
[1748077323042,0.29734913,672.61,671.89,1.1111982]
[1748077324042,0.29734913,672.61,671.9,0.7950989]
[1748077325439,0.29734913,672.61,671.91,0.7950989]
[1748077326843,0.29734913,672.61,671.92,0.7950989]
[1748077327845,0.29734913,672.61,671.96,1.1111982]
[1748077328945,0.29734913,672.61,671.97,0.7950989]
[1748077330948,0.29734913,672.61,672.12,1.1111982]
[1748077332349,0.29734913,672.61,672.13,0.7950989]
[1748077333552,0.29734913,672.61,672.14,0.7950989]
[1748077334550,0.29734913,672.61,672.15,0.7950989]
[1748077335950,0.29734913,672.61,672.16,0.7950989]
[1748077337149,0.29734913,672.61,672.17,0.7950989]
[1748077338554,0.29734913,672.61,672.18,0.7950989]
[1748077339555,0.29734913,672.61,672.19,0.7950989]
[1748077340855,0.29734913,672.61,672.2,0.7950989]
[1748077342257,0.29734913,672.61,672.21,0.7950989]
[1748077343457,0.29734913,672.61,672.22,0.7950989]
[1748077344857,0.29734913,672.61,672.23,0.7950989]
[1748077346156,0.29734913,672.61,672.24,0.7950989]
[1748077347059,0.29734913,672.61,672.25,0.7950989]
[1748077348461,0.29734913,672.61,672.26,0.7950989]
[1748077349660,0.29734913,672.61,672.27,0.7950989]
[1748077351360,0.29734913,672.61,672.28,0.7950989]
[1748077352362,0.29734913,672.61,672.29,0.7950989]
[1748077354063,0.29734913,672.61,672.3,0.7950989]
[1748077354965,0.29734913,672.61,672.31,0.7950989]
[1748077356663,0.29734913,672.61,672.32,0.7950989]
[1748077358170,0.29734913,672.61,672.33,0.7950989]
[1748077359669,0.29734913,672.61,672.34,0.7950989]
[1748077360769,0.29734913,672.61,672.35,0.7950989]
[1748077361769,0.29734913,672.61,672.36,0.7950989]
[1748077362667,0.29734913,672.61,672.37,0.7950989]
[1748077363271,3.70132711,674.52,672.37,0.7950989]
[1748077363472,0.29655111,674.42,672.37,0.7950989]
[1748077364072,0.25850734,673.91,672.37,0.7950989]
[1748077364272,0.29678434,673.89,672.37,0.7950989]
[1748077364570,0.29678434,673.89,671.0,3.72252951]
[1748077364571,0.29678434,673.89,672.38,0.7950989]
[1748077365672,0.29678434,673.89,672.39,0.7950989]
[1748077366768,0.29678434,673.89,672.0,2.2223964]
[1748077366769,0.29678434,673.89,672.4,0.7950989]
[1748077367873,0.29678434,673.89,672.41,0.7950989]
[1748077369476,0.29678434,673.89,672.27,1.1111982]
[1748077369477,0.29678434,673.89,672.42,0.7950989]
[1748077370972,0.29678434,673.89,672.43,0.7950989]
[1748077372277,0.29678434,673.89,672.44,0.7950989]
[1748077373779,0.29678434,673.89,672.45,0.7950989]
[1748077374982,0.29678434,673.89,672.28,0.7950989]
[1748077376481,0.29678434,673.89,671.91,0.7950989]
[1748077377884,0.29678434,673.89,671.92,0.7950989]
[1748077379078,0.29678434,673.89,671.93,0.7950989]
[1748077379983,0.29678434,673.89,671.94,0.7950989]
[1748077381280,0.29678434,673.89,671.95,0.7950989]
[1748077382883,0.29678434,673.89,672.06,1.1111982]
[1748077384084,0.29678434,673.89,672.07,0.7950989]
[1748077385278,0.29678434,673.89,672.23,1.1111982]
[1748077386687,0.29678434,673.89,672.24,0.7950989]
[1748077388188,0.29678434,673.89,672.26,1.1111982]
[1748077389388,0.29678434,673.89,672.27,0.7950989]
[1748077390389,3.70132711,673.51,672.28,0.7950989]
[1748077390689,0.2969606,673.49,672.28,0.7950989]
[1748077391489,0.2969606,673.49,672.29,0.7950989]
[1748077393294,0.2969606,673.49,672.3,0.7950989]
[1748077394393,0.2969606,673.49,672.31,0.7950989]
[1748077395896,0.2969606,673.49,672.32,0.7950989]
[1748077397297,0.2969606,673.49,672.33,0.7950989]
[1748077398597,0.2969606,673.49,672.34,0.7950989]
[1748077399697,0.2969606,673.49,672.35,0.7950989]
[1748077401602,0.2969606,673.49,672.36,0.7950989]
[1748077402499,0.2969606,673.49,672.37,0.7950989]
[1748077403999,0.2969606,673.49,672.38,0.7950989]
[1748077404000,3.70132711,673.37,672.38,0.7950989]
[1748077404201,0.29702235,673.35,672.38,0.7950989]
[1748077405401,0.29702235,673.35,672.39,0.7950989]
[1748077407003,0.29702235,673.35,672.4,0.7950989]
[1748077408104,0.29702235,673.35,672.41,0.7950989]
[1748077409605,0.29702235,673.35,672.42,0.7950989]
[1748077410606,0.29702235,673.35,672.43,0.7950989]
[1748077412108,0.29702235,673.35,672.44,0.7950989]
[1748077413609,0.29702235,673.35,672.15,1.1111982]
[1748077414511,0.29702235,673.35,672.16,0.79803533]
[1748077415812,0.29702235,673.35,672.17,0.79803533]
[1748077417212,0.29702235,673.35,672.18,0.79803533]
[1748077418707,0.29702235,673.35,672.28,1.1111982]
[1748077420411,0.29702235,673.35,672.29,0.79803533]
[1748077422208,0.29702235,673.35,670.31,3.72252951]
[1748077422209,0.29702235,673.35,672.3,0.79803533]
[1748077423413,0.29702235,673.35,672.31,0.79803533]
[1748077424913,0.29702235,673.35,672.32,0.79803533]
[1748077426317,0.29702235,673.35,672.33,0.79803533]
[1748077428821,0.29702235,673.35,672.34,0.79803533]
[1748077429919,0.29702235,673.35,672.35,0.79803533]
[1748077431220,0.29702235,673.35,672.36,0.79803533]
[1748077432023,0.29702235,673.35,672.37,0.79803533]
[1748077434324,0.29702235,673.35,672.38,1.90923353]
[1748077435324,0.29702235,673.35,672.39,0.79803533]
[1748077436825,0.29702235,673.35,672.4,0.79803533]
[1748077437829,0.29702235,673.35,672.41,0.79803533]
[1748077439320,0.29702235,673.35,672.42,0.79803533]
[1748077440327,0.29702235,673.35,672.43,0.79803533]
[1748077441930,0.29702235,673.35,672.44,0.79803533]
[1748077443429,0.29702235,673.35,672.45,0.79803533]
[1748077444625,0.29702235,673.35,672.34,1.1111982]
[1748077444626,0.29702235,673.35,672.46,0.79803533]
[1748077446224,0.29702235,673.35,672.47,0.79803533]
[1748077447330,0.29702235,673.35,672.48,0.79803533]
[1748077448328,0.29702235,673.35,672.49,0.79803533]
[1748077449533,0.29702235,673.35,672.5,0.79803533]
[1748077450632,0.29702235,673.35,672.51,0.79803533]
[1748077452135,0.29702235,673.35,672.52,0.79803533]
[1748077453737,0.29702235,673.35,672.53,0.79803533]
[1748077455141,0.29702235,673.35,672.38,1.1111982]
[1748077455142,0.29702235,673.35,672.54,0.79803533]
[1748077456442,0.29702235,673.35,672.55,0.79803533]
[1748077457845,0.29702235,673.35,672.56,0.79803533]
[1748077458943,0.29702235,673.35,672.57,0.79803533]
[1748077460046,0.29702235,673.35,672.58,0.79803533]